[Event "Titled Tuesday Blitz August 08 Early 2023"]
[White "Hnydiuk, Aleksander"]
[Black "Nayak Rajesh"]
[WhiteFideId "1109057"]
[BlackFideId "35017152"]
[WhiteElo "2488"]
[BlackElo "2327"]
[Result "1-0"]
[Round "6"]
[TimeControl "180+1"]
[Date "2023.08.08"]
[WhiteClock "0:00:04"]
[BlackClock "0:00:02"]
[Board "183"]

1. d4 {[%clk 0:03:00]}  Nf6 {[%clk 0:02:59]} 2. c4 {[%clk 0:03:00]}  g6 {[%clk 0:02:59]} 3. Nc3 {[%clk 0:03:00]}  Bg7 {[%clk 0:02:59]} 4. e4 {[%clk 0:02:59]}  d6 {[%clk 0:02:59]} 5. Nf3 {[%clk 0:02:59]}  O-O {[%clk 0:03:00]} 6. Be2 {[%clk 0:02:59]}  e5 {[%clk 0:02:56]} 7. Be3 {[%clk 0:02:59]}  Nc6 {[%clk 0:02:55]} 8. d5 {[%clk 0:02:59]}  Ne7 {[%clk 0:02:55]} 9. Nd2 {[%clk 0:02:59]}  Ne8 {[%clk 0:02:49]} 10. Qc2 {[%clk 0:02:51]}  f5 {[%clk 0:02:48]} 11. f3 {[%clk 0:02:51]}  f4 {[%clk 0:02:45]} 12. Bf2 {[%clk 0:02:50]}  c5 {[%clk 0:02:41]} 13. a3 {[%clk 0:02:44]}  b6 {[%clk 0:02:33]} 14. b4 {[%clk 0:02:42]}  Nf6 {[%clk 0:02:25]} 15. bxc5 {[%clk 0:02:25]}  bxc5 {[%clk 0:02:24]} 16. O-O {[%clk 0:02:23]}  g5 {[%clk 0:02:23]} 17. g4 {[%clk 0:02:16]}  fxg3 {[%clk 0:02:15]} 18. hxg3 {[%clk 0:02:17]}  Bh3 {[%clk 0:02:05]} 19. Rfb1 {[%clk 0:02:16]}  Qe8 {[%clk 0:02:06]} 20. Bf1 {[%clk 0:02:14]}  Qh5 {[%clk 0:02:04]} 21. Qd1 {[%clk 0:01:45]}  g4 {[%clk 0:02:02]} 22. Bxh3 {[%clk 0:01:38]}  Qxh3 {[%clk 0:02:01]} 23. Qf1 {[%clk 0:01:35]}  Qh5 {[%clk 0:02:00]} 24. Qg2 {[%clk 0:01:33]}  gxf3 {[%clk 0:01:59]} 25. Nxf3 {[%clk 0:01:27]}  Ng4 {[%clk 0:01:54]} 26. Ra2 {[%clk 0:01:14]}  Rf7 {[%clk 0:01:27]} 27. Nh4 {[%clk 0:01:12]}  Raf8 {[%clk 0:01:25]} 28. Rbb2 {[%clk 0:01:03]}  Bh6 {[%clk 0:01:21]} 29. Nd1 {[%clk 0:00:41]}  Bg5 {[%clk 0:00:55]} 30. Re2 {[%clk 0:00:38]}  Rg7 {[%clk 0:00:39]} 31. Nf3 {[%clk 0:00:35]}  Bf4 {[%clk 0:00:27]} 32. Be1 {[%clk 0:00:21]}  Ng6 {[%clk 0:00:23]} 33. Qh1 {[%clk 0:00:15]}  Qxh1+ {[%clk 0:00:15]} 34. Kxh1 {[%clk 0:00:16]}  Bxg3 {[%clk 0:00:13]} 35. Ng5 {[%clk 0:00:06]}  Bxe1 {[%clk 0:00:11]} 36. Rxe1 {[%clk 0:00:06]}  Nf4 {[%clk 0:00:11]} 37. Ne6 {[%clk 0:00:04]}  Nxe6 {[%clk 0:00:09]} 38. dxe6 {[%clk 0:00:05]}  Rg6 {[%clk 0:00:08]} 39. Rg2 {[%clk 0:00:05]}  Re8 {[%clk 0:00:07]} 40. Ne3 {[%clk 0:00:04]}  Rexe6 {[%clk 0:00:07]} 41. Rxg4 {[%clk 0:00:03]}  Rxg4 {[%clk 0:00:06]} 42. Nxg4 {[%clk 0:00:04]}  Rg6 {[%clk 0:00:06]} 43. Rg1 {[%clk 0:00:03]}  h5 {[%clk 0:00:05]} 44. Ne3 {[%clk 0:00:03]}  Rxg1+ {[%clk 0:00:05]} 45. Kxg1 {[%clk 0:00:04]}  Kf7 {[%clk 0:00:05]} 46. Nf5 {[%clk 0:00:05]}  Ke6 {[%clk 0:00:06]} 47. Ng7+ {[%clk 0:00:05]}  Kd7 {[%clk 0:00:06]} 48. Nxh5 {[%clk 0:00:05]}  Kc6 {[%clk 0:00:06]} 49. Kf2 {[%clk 0:00:05]}  Kb6 {[%clk 0:00:07]} 50. Nf6 {[%clk 0:00:05]}  Ka5 {[%clk 0:00:07]} 51. Ne8 {[%clk 0:00:06]}  Ka4 {[%clk 0:00:07]} 52. Nxd6 {[%clk 0:00:06]}  Kxa3 {[%clk 0:00:08]} 53. Ke3 {[%clk 0:00:06]}  Kb4 {[%clk 0:00:07]} 54. Kd3 {[%clk 0:00:07]}  Kb3 {[%clk 0:00:07]} 55. Nf7 {[%clk 0:00:05]}  a5 {[%clk 0:00:07]} 56. Nxe5 {[%clk 0:00:05]}  a4 {[%clk 0:00:07]} 57. Nd7 {[%clk 0:00:03]}  Kb4 {[%clk 0:00:07]} 58. Kc2 {[%clk 0:00:03]}  a3 {[%clk 0:00:07]} 59. e5 {[%clk 0:00:03]}  Kxc4 {[%clk 0:00:07]} 60. e6 {[%clk 0:00:03]}  a2 {[%clk 0:00:06]} 61. Kb2 {[%clk 0:00:03]}  Kd5 {[%clk 0:00:06]} 62. e7 {[%clk 0:00:04]}  Kd6 {[%clk 0:00:02]} 63. e8=Q {[%clk 0:00:04]} 1-0


[Site "https://www.chess.com"]

[Event "Titled Tuesday Blitz August 08 Early 2023"]
[White "Ljukin, Sergei"]
[Black "Rodriguez Santiago, Jaime"]
[WhiteFideId "14102200"]
[BlackFideId "3100898"]
[WhiteElo "2474"]
[BlackElo "2325"]
[Result "1-0"]
[Round "6"]
[TimeControl "180+1"]
[Date "2023.08.08"]
[WhiteClock "0:00:10"]
[BlackClock "0:00:09"]
[Board "184"]

1. e4 {[%clk 0:02:47]}  c6 {[%clk 0:02:59]} 2. d4 {[%clk 0:02:47]}  d5 {[%clk 0:02:59]} 3. e5 {[%clk 0:02:48]}  Bf5 {[%clk 0:02:58]} 4. Nd2 {[%clk 0:02:48]}  e6 {[%clk 0:02:58]} 5. Nb3 {[%clk 0:02:49]}  c5 {[%clk 0:02:58]} 6. dxc5 {[%clk 0:02:48]}  Bxc5 {[%clk 0:02:59]} 7. Nxc5 {[%clk 0:02:47]}  Qa5+ {[%clk 0:03:00]} 8. c3 {[%clk 0:02:48]}  Qxc5 {[%clk 0:03:00]} 9. Be3 {[%clk 0:02:48]}  Qc7 {[%clk 0:03:00]} 10. f4 {[%clk 0:02:48]}  Ne7 {[%clk 0:02:58]} 11. Nf3 {[%clk 0:02:49]}  Nec6 {[%clk 0:02:55]} 12. Be2 {[%clk 0:02:48]}  h5 {[%clk 0:02:54]} 13. O-O {[%clk 0:02:48]}  Nd7 {[%clk 0:02:52]} 14. b4 {[%clk 0:02:44]}  a6 {[%clk 0:02:46]} 15. a4 {[%clk 0:02:42]}  Ne7 {[%clk 0:02:43]} 16. Rc1 {[%clk 0:02:36]}  Nb6 {[%clk 0:02:40]} 17. Bc5 {[%clk 0:02:23]}  Rc8 {[%clk 0:02:06]} 18. a5 {[%clk 0:02:08]}  Nd7 {[%clk 0:02:05]} 19. Bf2 {[%clk 0:01:58]}  Be4 {[%clk 0:01:51]} 20. Nd4 {[%clk 0:01:54]}  Nc6 {[%clk 0:01:46]} 21. Bxh5 {[%clk 0:01:42]}  Nxd4 {[%clk 0:01:28]} 22. Bxd4 {[%clk 0:01:41]}  Qd8 {[%clk 0:01:13]} 23. g3 {[%clk 0:01:17]}  Nb8 {[%clk 0:01:04]} 24. Bf3 {[%clk 0:01:13]}  Nc6 {[%clk 0:00:47]} 25. Bxe4 {[%clk 0:00:57]}  dxe4 {[%clk 0:00:46]} 26. Bc5 {[%clk 0:00:56]}  Qc7 {[%clk 0:00:32]} 27. Qe2 {[%clk 0:00:51]}  Nxa5 {[%clk 0:00:25]} 28. Qc2 {[%clk 0:00:20]}  Nc6 {[%clk 0:00:20]} 29. Qxe4 {[%clk 0:00:19]}  a5 {[%clk 0:00:20]} 30. b5 {[%clk 0:00:18]}  Nb8 {[%clk 0:00:19]} 31. Bd6 {[%clk 0:00:17]}  Qb6+ {[%clk 0:00:19]} 32. Kh1 {[%clk 0:00:14]}  Nd7 {[%clk 0:00:19]} 33. c4 {[%clk 0:00:14]}  a4 {[%clk 0:00:19]} 34. Rfe1 {[%clk 0:00:13]}  Nc5 {[%clk 0:00:19]} 35. Qe3 {[%clk 0:00:13]}  Nd7 {[%clk 0:00:18]} 36. Qxb6 {[%clk 0:00:12]}  Nxb6 {[%clk 0:00:19]} 37. c5 {[%clk 0:00:13]}  Nd5 {[%clk 0:00:19]} 38. c6 {[%clk 0:00:13]}  bxc6 {[%clk 0:00:19]} 39. bxc6 {[%clk 0:00:13]}  Nc7 {[%clk 0:00:18]} 40. Re4 {[%clk 0:00:13]}  Nd5 {[%clk 0:00:17]} 41. Rxa4 {[%clk 0:00:13]}  f6 {[%clk 0:00:16]} 42. Ra7 {[%clk 0:00:13]}  fxe5 {[%clk 0:00:15]} 43. fxe5 {[%clk 0:00:13]}  Nb4 {[%clk 0:00:12]} 44. Re7+ {[%clk 0:00:10]}  Kd8 {[%clk 0:00:09]} 45. c7+ {[%clk 0:00:10]} 1-0


[Site "https://www.chess.com"]

[Event "Titled Tuesday Blitz August 08 Early 2023"]
[White "MateoReyes"]
[Black "Villuendas Valero, Adrian"]
[BlackFideId "2262460"]
[WhiteElo "2454"]
[BlackElo "2322"]
[Result "1-0"]
[Round "6"]
[TimeControl "180+1"]
[Date "2023.08.08"]
[WhiteClock "0:00:03"]
[BlackClock "0:00:25"]
[Board "186"]

1. Nf3 {[%clk 0:02:54]}  c5 {[%clk 0:02:56]} 2. e4 {[%clk 0:02:53]}  e6 {[%clk 0:02:51]} 3. d4 {[%clk 0:02:53]}  cxd4 {[%clk 0:02:51]} 4. Nxd4 {[%clk 0:02:53]}  Qb6 {[%clk 0:02:51]} 5. Nb3 {[%clk 0:02:51]}  Bb4+ {[%clk 0:02:48]} 6. c3 {[%clk 0:02:49]}  Be7 {[%clk 0:02:48]} 7. Bd3 {[%clk 0:02:48]}  Nc6 {[%clk 0:02:46]} 8. Be3 {[%clk 0:02:48]}  Qc7 {[%clk 0:02:44]} 9. N1d2 {[%clk 0:02:47]}  Nf6 {[%clk 0:02:42]} 10. O-O {[%clk 0:02:45]}  O-O {[%clk 0:02:40]} 11. Kh1 {[%clk 0:02:44]}  d5 {[%clk 0:02:40]} 12. f4 {[%clk 0:02:39]}  dxe4 {[%clk 0:02:35]} 13. Nxe4 {[%clk 0:02:38]}  Nd5 {[%clk 0:02:32]} 14. Bg1 {[%clk 0:02:35]}  Nxf4 {[%clk 0:02:29]} 15. Bc2 {[%clk 0:02:33]}  Rd8 {[%clk 0:02:24]} 16. Qf3 {[%clk 0:02:32]}  g5 {[%clk 0:01:36]} 17. Be3 {[%clk 0:02:28]}  e5 {[%clk 0:01:22]} 18. Bxf4 {[%clk 0:02:22]}  exf4 {[%clk 0:01:20]} 19. Qh5 {[%clk 0:02:20]}  Bf5 {[%clk 0:01:06]} 20. Rae1 {[%clk 0:02:07]}  Bg6 {[%clk 0:00:57]} 21. Qh6 {[%clk 0:02:05]}  Ne5 {[%clk 0:00:47]} 22. Bb1 {[%clk 0:01:45]}  Ng4 {[%clk 0:00:44]} 23. Qh3 {[%clk 0:01:40]}  Ne3 {[%clk 0:00:41]} 24. Rg1 {[%clk 0:01:31]}  Qe5 {[%clk 0:00:36]} 25. Nbd2 {[%clk 0:01:15]}  g4 {[%clk 0:00:21]} 26. Qh6 {[%clk 0:01:11]}  Rxd2 {[%clk 0:00:15]} 27. Nxd2 {[%clk 0:01:08]}  Bg5 {[%clk 0:00:15]} 28. Nc4 {[%clk 0:00:46]}  Qc5 {[%clk 0:00:07]} 29. b4 {[%clk 0:00:44]}  Qd5 {[%clk 0:00:04]} 30. Nxe3 {[%clk 0:00:33]}  fxe3 {[%clk 0:00:04]} 31. Rd1 {[%clk 0:00:32]}  Qe5 {[%clk 0:00:03]} 32. Bxg6 {[%clk 0:00:24]}  Bxh6 {[%clk 0:00:04]} 33. Bd3 {[%clk 0:00:24]}  Bf4 {[%clk 0:00:04]} 34. g3 {[%clk 0:00:18]}  Qd5+ {[%clk 0:00:03]} 35. Rg2 {[%clk 0:00:18]}  Bg5 {[%clk 0:00:04]} 36. Bxh7+ {[%clk 0:00:18]}  Kxh7 {[%clk 0:00:04]} 37. Rxd5 {[%clk 0:00:18]}  f6 {[%clk 0:00:04]} 38. Rd7+ {[%clk 0:00:17]}  Kg6 {[%clk 0:00:04]} 39. Re2 {[%clk 0:00:17]}  Rc8 {[%clk 0:00:04]} 40. Rd3 {[%clk 0:00:15]}  Rc6 {[%clk 0:00:03]} 41. Kg2 {[%clk 0:00:15]}  Re6 {[%clk 0:00:02]} 42. Kf1 {[%clk 0:00:14]}  b5 {[%clk 0:00:03]} 43. Rd5 {[%clk 0:00:13]}  Re4 {[%clk 0:00:04]} 44. Rxb5 {[%clk 0:00:12]}  Rc4 {[%clk 0:00:05]} 45. Rc5 {[%clk 0:00:12]}  Re4 {[%clk 0:00:05]} 46. Ke1 {[%clk 0:00:10]}  f5 {[%clk 0:00:06]} 47. Rc6+ {[%clk 0:00:09]}  Kh5 {[%clk 0:00:06]} 48. c4 {[%clk 0:00:07]}  f4 {[%clk 0:00:06]} 49. gxf4 {[%clk 0:00:08]}  Bxf4 {[%clk 0:00:07]} 50. c5 {[%clk 0:00:06]}  g3 {[%clk 0:00:07]} 51. hxg3 {[%clk 0:00:05]}  Bxg3+ {[%clk 0:00:08]} 52. Kd1 {[%clk 0:00:05]}  Rc4 {[%clk 0:00:09]} 53. a3 {[%clk 0:00:04]}  Bf2 {[%clk 0:00:09]} 54. Re6 {[%clk 0:00:02]}  Rd4+ {[%clk 0:00:09]} 55. Kc2 {[%clk 0:00:02]}  Kg4 {[%clk 0:00:10]} 56. R2xe3 {[%clk 0:00:02]}  Bxe3 {[%clk 0:00:10]} 57. Rxe3 {[%clk 0:00:02]}  Kf5 {[%clk 0:00:11]} 58. Kc3 {[%clk 0:00:02]}  Rd7 {[%clk 0:00:11]} 59. Kc4 {[%clk 0:00:02]}  Kf6 {[%clk 0:00:12]} 60. b5 {[%clk 0:00:02]}  Rc7 {[%clk 0:00:12]} 61. c6 {[%clk 0:00:03]}  Rh7 {[%clk 0:00:13]} 62. a4 {[%clk 0:00:03]}  Rh5 {[%clk 0:00:14]} 63. Kd4 {[%clk 0:00:02]}  Rh4+ {[%clk 0:00:15]} 64. Re4 {[%clk 0:00:02]}  Rh5 {[%clk 0:00:16]} 65. Kc4 {[%clk 0:00:01]}  Rh8 {[%clk 0:00:17]} 66. Rd4 {[%clk 0:00:01]}  Rc8 {[%clk 0:00:17]} 67. Rd6+ {[%clk 0:00:01]}  Ke7 {[%clk 0:00:17]} 68. Rd7+ {[%clk 0:00:01]}  Ke6 {[%clk 0:00:18]} 69. Rxa7 {[%clk 0:00:01]}  Rd8 {[%clk 0:00:19]} 70. Kc5 {[%clk 0:00:01]}  Rc8 {[%clk 0:00:20]} 71. b6 {[%clk 0:00:02]}  Rb8 {[%clk 0:00:20]} 72. b7 {[%clk 0:00:02]}  Rh8 {[%clk 0:00:21]} 73. c7 {[%clk 0:00:03]}  Rh5+ {[%clk 0:00:22]} 74. Kc6 {[%clk 0:00:02]}  Rh7 {[%clk 0:00:23]} 75. c8=Q+ {[%clk 0:00:02]}  Ke5 {[%clk 0:00:24]} 76. Ra5+ {[%clk 0:00:02]}  Kf4 {[%clk 0:00:24]} 77. Qf5+ {[%clk 0:00:02]}  Ke3 {[%clk 0:00:24]} 78. Re5+ {[%clk 0:00:02]}  Kd4 {[%clk 0:00:24]} 79. Qe4+ {[%clk 0:00:02]}  Kc3 {[%clk 0:00:24]} 80. Rc5+ {[%clk 0:00:02]}  Kb2 {[%clk 0:00:25]} 81. Rc4 {[%clk 0:00:02]}  Ka3 {[%clk 0:00:26]} 82. Qd3+ {[%clk 0:00:02]}  Kb2 {[%clk 0:00:24]} 83. Rc2+ {[%clk 0:00:02]}  Kb1 {[%clk 0:00:25]} 84. Qd1# {[%clk 0:00:03]} 1-0


[Site "https://www.chess.com"]

[Event "Titled Tuesday Blitz August 08 Early 2023"]
[White "Swicarz, Maciej"]
[Black "Vasques, Antonio Pedro Freixial"]
[WhiteFideId "1113585"]
[BlackFideId "1908332"]
[WhiteElo "2423"]
[BlackElo "2319"]
[Result "0-1"]
[Round "6"]
[TimeControl "180+1"]
[Date "2023.08.08"]
[WhiteClock "0:00:21"]
[BlackClock "0:00:15"]
[Board "187"]

1. c4 {[%clk 0:03:00]}  b6 {[%clk 0:02:56]} 2. d4 {[%clk 0:02:58]}  Bb7 {[%clk 0:02:56]} 3. f3 {[%clk 0:02:55]}  e6 {[%clk 0:02:54]} 4. e4 {[%clk 0:02:53]}  d5 {[%clk 0:02:45]} 5. cxd5 {[%clk 0:02:52]}  exd5 {[%clk 0:02:46]} 6. e5 {[%clk 0:02:53]}  c5 {[%clk 0:02:46]} 7. Bb5+ {[%clk 0:02:47]}  Nc6 {[%clk 0:02:44]} 8. Be3 {[%clk 0:02:45]}  cxd4 {[%clk 0:02:42]} 9. Bxd4 {[%clk 0:02:46]}  Bc5 {[%clk 0:02:40]} 10. Ne2 {[%clk 0:02:44]}  Ne7 {[%clk 0:02:36]} 11. O-O {[%clk 0:02:41]}  O-O {[%clk 0:02:34]} 12. Bxc5 {[%clk 0:02:40]}  bxc5 {[%clk 0:02:35]} 13. f4 {[%clk 0:02:38]}  c4 {[%clk 0:02:27]} 14. Nbc3 {[%clk 0:02:31]}  Qb6+ {[%clk 0:02:24]} 15. Kh1 {[%clk 0:02:31]}  d4 {[%clk 0:02:23]} 16. Bxc6 {[%clk 0:02:31]}  Nxc6 {[%clk 0:02:24]} 17. Na4 {[%clk 0:02:26]}  Qa5 {[%clk 0:02:18]} 18. b3 {[%clk 0:02:22]}  Ba6 {[%clk 0:02:09]} 19. Rf3 {[%clk 0:02:09]}  Rfd8 {[%clk 0:01:57]} 20. Rg3 {[%clk 0:02:07]}  c3 {[%clk 0:01:48]} 21. Nc1 {[%clk 0:02:03]}  c2 {[%clk 0:01:44]} 22. Qg1 {[%clk 0:01:40]}  d3 {[%clk 0:01:41]} 23. Nxd3 {[%clk 0:01:33]}  Bxd3 {[%clk 0:01:39]} 24. Nb2 {[%clk 0:01:34]}  Bf5 {[%clk 0:01:38]} 25. Nc4 {[%clk 0:01:27]}  Qd5 {[%clk 0:01:35]} 26. Ne3 {[%clk 0:01:24]}  Qe4 {[%clk 0:01:35]} 27. Rg5 {[%clk 0:01:17]}  Ne7 {[%clk 0:01:22]} 28. Re1 {[%clk 0:01:06]}  Kh8 {[%clk 0:00:39]} 29. h4 {[%clk 0:01:03]}  Rac8 {[%clk 0:00:35]} 30. Nxc2 {[%clk 0:00:42]}  Qxc2 {[%clk 0:00:34]} 31. Kh2 {[%clk 0:00:43]}  Rd2 {[%clk 0:00:31]} 32. Qxa7 {[%clk 0:00:41]}  Rxg2+ {[%clk 0:00:30]} 33. Rxg2 {[%clk 0:00:41]}  Qc3 {[%clk 0:00:23]} 34. Qxe7 {[%clk 0:00:37]}  Qxe1 {[%clk 0:00:20]} 35. Qg5 {[%clk 0:00:36]}  g6 {[%clk 0:00:18]} 36. h5 {[%clk 0:00:34]}  Qe2 {[%clk 0:00:15]} 37. Qf6+ {[%clk 0:00:28]}  Kg8 {[%clk 0:00:15]} 38. Qxf5 {[%clk 0:00:28]}  Qxg2+ {[%clk 0:00:14]} 39. Kxg2 {[%clk 0:00:21]}  gxf5 {[%clk 0:00:15]} 0-1


[Site "https://www.chess.com"]

[Event "Titled Tuesday Blitz August 08 Early 2023"]
[White "Ladan, Nicholas"]
[Black "Goswami, Vedant"]
[WhiteFideId "30918855"]
[BlackFideId "5003725"]
[WhiteElo "2422"]
[BlackElo "2298"]
[Result "1-0"]
[Round "6"]
[TimeControl "180+1"]
[Date "2023.08.08"]
[WhiteClock "0:01:36"]
[BlackClock "0:00:00"]
[Board "188"]

1. d4 {[%clk 0:03:00]}  Nf6 {[%clk 0:02:58]} 2. Nf3 {[%clk 0:03:01]}  e6 {[%clk 0:02:54]} 3. Bf4 {[%clk 0:03:02]}  d5 {[%clk 0:02:51]} 4. e3 {[%clk 0:03:02]}  Bd6 {[%clk 0:02:52]} 5. Ne5 {[%clk 0:03:01]}  Nbd7 {[%clk 0:02:46]} 6. Bd3 {[%clk 0:03:00]}  Bxe5 {[%clk 0:02:37]} 7. dxe5 {[%clk 0:03:00]}  Ne4 {[%clk 0:02:37]} 8. Nd2 {[%clk 0:02:57]}  Nxd2 {[%clk 0:02:24]} 9. Qxd2 {[%clk 0:02:58]}  f6 {[%clk 0:02:24]} 10. exf6 {[%clk 0:02:56]}  Qxf6 {[%clk 0:02:23]} 11. O-O-O {[%clk 0:02:51]}  e5 {[%clk 0:02:21]} 12. Bg3 {[%clk 0:02:50]}  O-O {[%clk 0:02:13]} 13. h4 {[%clk 0:02:44]}  Nc5 {[%clk 0:02:04]} 14. h5 {[%clk 0:02:39]}  c6 {[%clk 0:01:55]} 15. h6 {[%clk 0:02:38]}  g6 {[%clk 0:01:54]} 16. Bh4 {[%clk 0:02:35]}  Qf7 {[%clk 0:01:50]} 17. Qb4 {[%clk 0:02:28]}  b6 {[%clk 0:01:47]} 18. Kb1 {[%clk 0:02:21]}  Bf5 {[%clk 0:01:45]} 19. Bxf5 {[%clk 0:02:18]}  Qxf5 {[%clk 0:01:44]} 20. Rh3 {[%clk 0:02:17]}  Qe4 {[%clk 0:01:31]} 21. Qxe4 {[%clk 0:02:13]}  Nxe4 {[%clk 0:01:31]} 22. f3 {[%clk 0:02:13]}  Nc5 {[%clk 0:01:27]} 23. Be7 {[%clk 0:02:11]}  Rf7 {[%clk 0:01:22]} 24. Bxc5 {[%clk 0:02:09]}  bxc5 {[%clk 0:01:21]} 25. Rd3 {[%clk 0:02:10]}  e4 {[%clk 0:01:18]} 26. Rc3 {[%clk 0:02:07]}  c4 {[%clk 0:01:15]} 27. b3 {[%clk 0:02:08]}  exf3 {[%clk 0:01:13]} 28. gxf3 {[%clk 0:02:06]}  Rb8 {[%clk 0:00:57]} 29. Kb2 {[%clk 0:02:04]}  Rf5 {[%clk 0:00:55]} 30. Ka3 {[%clk 0:02:02]}  Kf7 {[%clk 0:00:48]} 31. bxc4 {[%clk 0:01:58]}  d4 {[%clk 0:00:45]} 32. Rb3 {[%clk 0:01:57]}  Rxb3+ {[%clk 0:00:41]} 33. axb3 {[%clk 0:01:56]}  dxe3 {[%clk 0:00:42]} 34. f4 {[%clk 0:01:55]}  Rxf4 {[%clk 0:00:29]} 35. Rxe3 {[%clk 0:01:54]}  Rh4 {[%clk 0:00:30]} 36. Rd3 {[%clk 0:01:51]}  Ke7 {[%clk 0:00:27]} 37. c5 {[%clk 0:01:51]}  Rxh6 {[%clk 0:00:18]} 38. Rd6 {[%clk 0:01:51]}  Rh2 {[%clk 0:00:16]} 39. c4 {[%clk 0:01:47]}  g5 {[%clk 0:00:15]} 40. Rxc6 {[%clk 0:01:47]}  g4 {[%clk 0:00:15]} 41. Rc7+ {[%clk 0:01:47]}  Kd8 {[%clk 0:00:13]} 42. Rxa7 {[%clk 0:01:47]}  h5 {[%clk 0:00:12]} 43. Rg7 {[%clk 0:01:47]}  Rg2 {[%clk 0:00:11]} 44. c6 {[%clk 0:01:46]}  h4 {[%clk 0:00:11]} 45. b4 {[%clk 0:01:41]}  h3 {[%clk 0:00:09]} 46. b5 {[%clk 0:01:40]}  h2 {[%clk 0:00:04]} 47. Rh7 {[%clk 0:01:40]}  g3 {[%clk 0:00:02]} 48. b6 {[%clk 0:01:38]}  Rg1 {[%clk 0:00:00]} 49. b7 {[%clk 0:01:36]} 1-0


[Site "https://www.chess.com"]

[Event "Titled Tuesday Blitz August 08 Early 2023"]
[White "Namitbir Singh Walia"]
[Black "Mikhaylova, Irina"]
[WhiteFideId "35071068"]
[BlackFideId "4109040"]
[WhiteElo "2421"]
[BlackElo "2261"]
[Result "1-0"]
[Round "6"]
[TimeControl "180+1"]
[Date "2023.08.08"]
[WhiteClock "0:01:18"]
[BlackClock "0:00:16"]
[Board "190"]

1. e4 {[%clk 0:02:57]}  c5 {[%clk 0:03:00]} 2. Nf3 {[%clk 0:02:57]}  Nc6 {[%clk 0:03:00]} 3. d4 {[%clk 0:02:57]}  cxd4 {[%clk 0:03:00]} 4. Nxd4 {[%clk 0:02:57]}  e5 {[%clk 0:03:01]} 5. Nb5 {[%clk 0:02:56]}  d6 {[%clk 0:03:01]} 6. c4 {[%clk 0:02:57]}  Be7 {[%clk 0:03:01]} 7. N1c3 {[%clk 0:02:57]}  a6 {[%clk 0:03:01]} 8. Na3 {[%clk 0:02:56]}  Be6 {[%clk 0:03:01]} 9. Be2 {[%clk 0:02:52]}  Bg5 {[%clk 0:03:00]} 10. O-O {[%clk 0:02:53]}  Bxc1 {[%clk 0:03:00]} 11. Rxc1 {[%clk 0:02:54]}  Nf6 {[%clk 0:03:01]} 12. Nc2 {[%clk 0:02:52]}  O-O {[%clk 0:02:59]} 13. b3 {[%clk 0:02:46]}  Qa5 {[%clk 0:02:48]} 14. Ne3 {[%clk 0:02:44]}  Nd4 {[%clk 0:02:23]} 15. Bd3 {[%clk 0:02:43]}  b5 {[%clk 0:02:17]} 16. cxb5 {[%clk 0:02:35]}  axb5 {[%clk 0:02:16]} 17. Nf5 {[%clk 0:02:11]}  Bxf5 {[%clk 0:01:59]} 18. exf5 {[%clk 0:02:10]}  Rfc8 {[%clk 0:01:07]} 19. Qe1 {[%clk 0:02:10]}  Rc5 {[%clk 0:00:55]} 20. Ne4 {[%clk 0:01:20]}  Nxe4 {[%clk 0:00:32]} 21. Qxe4 {[%clk 0:01:19]}  Qd2 {[%clk 0:00:16]} 22. Qxa8+ {[%clk 0:01:18]} 1-0


[Site "https://www.chess.com"]

[Event "Titled Tuesday Blitz August 08 Early 2023"]
[White "Vaglio Munoz, Jaime"]
[Black "Pershina, Elena"]
[WhiteFideId "6500145"]
[BlackFideId "24147516"]
[WhiteElo "2237"]
[BlackElo "2391"]
[Result "1-0"]
[Round "6"]
[TimeControl "180+1"]
[Date "2023.08.08"]
[WhiteClock "0:00:30"]
[BlackClock "0:00:00"]
[Board "191"]

1. Nf3 {[%clk 0:03:00]}  d5 {[%clk 0:02:58]} 2. c4 {[%clk 0:02:59]}  c6 {[%clk 0:02:54]} 3. b3 {[%clk 0:02:44]}  Nf6 {[%clk 0:02:52]} 4. Bb2 {[%clk 0:02:45]}  Bf5 {[%clk 0:02:47]} 5. g3 {[%clk 0:02:44]}  e6 {[%clk 0:02:46]} 6. Bg2 {[%clk 0:02:44]}  Nbd7 {[%clk 0:02:44]} 7. O-O {[%clk 0:02:44]}  Bd6 {[%clk 0:02:36]} 8. d3 {[%clk 0:02:44]}  h6 {[%clk 0:02:35]} 9. Re1 {[%clk 0:02:44]}  O-O {[%clk 0:02:28]} 10. Nbd2 {[%clk 0:02:41]}  Bh7 {[%clk 0:01:55]} 11. e4 {[%clk 0:02:40]}  dxe4 {[%clk 0:01:51]} 12. dxe4 {[%clk 0:02:41]}  Bc5 {[%clk 0:01:42]} 13. h3 {[%clk 0:02:39]}  Qb6 {[%clk 0:01:38]} 14. Re2 {[%clk 0:02:32]}  Rad8 {[%clk 0:01:21]} 15. a3 {[%clk 0:02:30]}  a5 {[%clk 0:01:19]} 16. Qc1 {[%clk 0:02:12]}  Nh5 {[%clk 0:01:04]} 17. Nf1 {[%clk 0:02:08]}  Ndf6 {[%clk 0:00:57]} 18. N3d2 {[%clk 0:02:01]}  Rd3 {[%clk 0:00:49]} 19. Qb1 {[%clk 0:01:33]}  Rfd8 {[%clk 0:00:43]} 20. Bxf6 {[%clk 0:01:18]}  Nxf6 {[%clk 0:00:40]} 21. Ra2 {[%clk 0:01:17]}  Nh5 {[%clk 0:00:33]} 22. b4 {[%clk 0:01:16]}  axb4 {[%clk 0:00:29]} 23. axb4 {[%clk 0:01:17]}  Bxb4 {[%clk 0:00:27]} 24. Rb2 {[%clk 0:01:16]}  c5 {[%clk 0:00:27]} 25. Nf3 {[%clk 0:01:12]}  Rd1 {[%clk 0:00:22]} 26. Qa2 {[%clk 0:01:10]}  Qd6 {[%clk 0:00:19]} 27. Kh2 {[%clk 0:01:10]}  Qd3 {[%clk 0:00:14]} 28. Ne3 {[%clk 0:01:02]}  Bxe4 {[%clk 0:00:11]} 29. Ne5 {[%clk 0:00:57]}  Qd4 {[%clk 0:00:03]} 30. Nxd1 {[%clk 0:00:47]}  Bxg2 {[%clk 0:00:03]} 31. Kxg2 {[%clk 0:00:45]}  Qxd1 {[%clk 0:00:03]} 32. Qa7 {[%clk 0:00:37]}  Qd4 {[%clk 0:00:02]} 33. Qxb7 {[%clk 0:00:36]}  Nf6 {[%clk 0:00:02]} 34. Qf3 {[%clk 0:00:35]}  Qd1 {[%clk 0:00:01]} 35. g4 {[%clk 0:00:34]}  Qc1 {[%clk 0:00:00]} 36. Rbc2 {[%clk 0:00:30]} 1-0


[Site "https://www.chess.com"]